Body Name,Body,Service Level,Expense Type,Expense Code,Narrative,Date,Transaction Number,Amount,Capital and Revenue,Supplier Name,Supplier ID
South Ribble Council,http://statistics.data.gov.uk/doc/local-authority/30UN,Information Services,Peripherals,4244,"8 x BT Converse 2200 black telephones @ 34.30 each, 2 x BT Converse 2300 black telephones @ 44.90 each, as per quote",21/11/2018,0000443384,364.20,Revenue,ACS SYSTEMS UK LTD,00070166
South Ribble Council,http://statistics.data.gov.uk/doc/local-authority/30UN,Democratic Services,Other Expenses,463A,Remembrance Sunday 11th November 2018 Supply sound system at the Memorial in Leyland as per usual set up,14/11/2018,0000443248,355.00,Revenue,ACTIVE AV LTD,131458
South Ribble Council,http://statistics.data.gov.uk/doc/local-authority/30UN,Regeneration,Other Misc,4851,AV equipment for Battles Over Event,21/11/2018,0000443353,680.00,Revenue,ACTIVE AV LTD,131458
South Ribble Council,http://statistics.data.gov.uk/doc/local-authority/30UN,Area 3 - Parks/Leyland East West,Capital Expenditure,C230,10 lengths of 90mm lattice wire chair spacer 2.000mtr long 4 sheets of A393 reinforcing square mesh 4.800 metres long 2.400,07/11/2018,0000443011,264.00,Revenue,Ainscough Ltd T/A Ainscough Metals,132160
South Ribble Council,http://statistics.data.gov.uk/doc/local-authority/30UN,HR & Communications,Training Expense-Course Fees,1402,Course: Alcumus ISO 14001:2015 IRCA EMS Auditor Conversion Training Venue: Manchester Delegate: NAME REDACTED,21/11/2018,0000443315,787.00,Revenue,ALCUMUS ISOQAR LTD,131571
South Ribble Council,http://statistics.data.gov.uk/doc/local-authority/30UN,Housing,Cap Grant- Improve Grants,C570,ARCHITECT FEES FOR PLANS DRAWN FOR NAME & ADDRESS REDACTED COST 1080.00 INC VAT,16/11/2018,0000443286,540.00,Revenue,Aldrock Surveyors Ltd,132469
South Ribble Council,http://statistics.data.gov.uk/doc/local-authority/30UN,Legal,Financial,4811,post office,30/11/2018,0000443054,"1,021.17",Revenue,ALLPAY LTD,00122276
South Ribble Council,http://statistics.data.gov.uk/doc/local-authority/30UN,Legal,Financial,4811,paypoint,30/11/2018,0000443054,158.33,Revenue,ALLPAY LTD,00122276
South Ribble Council,http://statistics.data.gov.uk/doc/local-authority/30UN,Legal,Financial,4811,webconnect,30/11/2018,0000443054,47.72,Revenue,ALLPAY LTD,00122276
South Ribble Council,http://statistics.data.gov.uk/doc/local-authority/30UN,Property Services,Cleaning and Domestic Supplies,2711,Cleaning stock for Civic Centre Offices and kitchen,14/11/2018,0000443204,362.48,Revenue,AMTOLL LTD,130945
South Ribble Council,http://statistics.data.gov.uk/doc/local-authority/30UN,Neighbourhood Admin & Support,Clothing- Uniforms & Laundry,4410,CLEAR VISOR - 3M 7`` - B252953,16/11/2018,0000442893,365.10,Revenue,ARCO,00014096
South Ribble Council,http://statistics.data.gov.uk/doc/local-authority/30UN,Democratic Services,Training Expense-Course Fees,1403,AEA FOUNDATION COURSE IN ELECTORAL ADMINISTRATION FOR NAME REDACTED,14/11/2018,0000443126,"1,750.01",Revenue,ASSOC OF ELECTORAL ADMINISTRATORS LTD,00014449
South Ribble Council,http://statistics.data.gov.uk/doc/local-authority/30UN,Democratic Services,Other Misc,4970,Course: AEA 2 Day Electoral Registration Course Location: Nottingham Date: 21st & 22nd January 2019 : NAME REDACTED,21/11/2018,0000443314,660.00,Revenue,ASSOC OF ELECTORAL ADMINISTRATORS LTD,00014449
South Ribble Council,http://statistics.data.gov.uk/doc/local-authority/30UN,Information Services,Capital Expenditure,C234,"Additional equipment for room project, as per quote ref. 18 16740 REV1",16/11/2018,0000442972,"10,349.00",Revenue,AUDITEL,130495
South Ribble Council,http://statistics.data.gov.uk/doc/local-authority/30UN,Information Services,Peripherals,4248,"Auditel Maintenance Package - Siler Service -  for period 26/11/18 - 25/11/19, as per quote",30/11/2018,0000443556,"5,970.00",Revenue,AUDITEL,130495
South Ribble Council,http://statistics.data.gov.uk/doc/local-authority/30UN,Area 2 - Waste Transport/Eastern & Central Teams,Printing,4120,25000 Christmas Collection Stickers as per your quotation No 138981,21/11/2018,0000443303,898.00,Revenue,B & D PRINT SERVICES LTD,00015134
South Ribble Council,http://statistics.data.gov.uk/doc/local-authority/30UN,Regeneration,Other Misc,4861,"7,000 Christmas What`s On Guides as per estimate no 137748. pdf to be supplied",21/11/2018,0000443326,428.00,Revenue,B & D PRINT SERVICES LTD,00015134
South Ribble Council,http://statistics.data.gov.uk/doc/local-authority/30UN,Regeneration,Advertising,4848,"For the production of 7,000 Western Parishes newsletters as per the pdf sent",21/11/2018,0000443326,511.00,Revenue,B & D PRINT SERVICES LTD,00015134
South Ribble Council,http://statistics.data.gov.uk/doc/local-authority/30UN,Regeneration,Other Misc,4861,5000 x A3 folded to A4 full colour leaflet: Penwortham Christmas Guide,21/11/2018,0000443327,348.00,Revenue,B & D PRINT SERVICES LTD,00015134
South Ribble Council,http://statistics.data.gov.uk/doc/local-authority/30UN,Regeneration,Other Misc,4861,5000 x A3 folded to A4 full colour leaflet: Christmas in Leyland What`s On Guide,21/11/2018,0000443328,348.00,Revenue,B & D PRINT SERVICES LTD,00015134
South Ribble Council,http://statistics.data.gov.uk/doc/local-authority/30UN,Neighbourhood Admin & Support,Materials General,4046,PLEASE FIND ATTACHED ORDER FOR BULBS / FERNS / PLANTS FOR FRIENDS GROUPS,16/11/2018,0000443329,"1,053.44",Revenue,BANNISTER HALL LANDSCAPE SUPPLIES,00117786
South Ribble Council,http://statistics.data.gov.uk/doc/local-authority/30UN,Neighbourhood Admin & Support,Materials General,4046,DELIVERY CHARGE,16/11/2018,0000443329,20.00,Revenue,BANNISTER HALL LANDSCAPE SUPPLIES,00117786
South Ribble Council,http://statistics.data.gov.uk/doc/local-authority/30UN,Shared Financial Services,Peripherals,4248,30-Sep-18,14/11/2018,0000443159,259.94,Revenue,Barclaycard Merchant Services,132157
South Ribble Council,http://statistics.data.gov.uk/doc/local-authority/30UN,Shared Financial Services,Balance Sheet,0030,,14/11/2018,0000442818,"2,702.59",Revenue,Barclays Bank Plc,130842
South Ribble Council,http://statistics.data.gov.uk/doc/local-authority/30UN,Shared Financial Services,Balance Sheet,0030,,14/11/2018,0000442819,"3,899.77",Revenue,Barclays Bank Plc,130842
South Ribble Council,http://statistics.data.gov.uk/doc/local-authority/30UN,Shared Financial Services,Balance Sheet,0030,,14/11/2018,0000442820,"3,650.21",Revenue,Barclays Bank Plc,130842
South Ribble Council,http://statistics.data.gov.uk/doc/local-authority/30UN,Shared Financial Services,Balance Sheet,0030,,14/11/2018,0000442821,"1,329.64",Revenue,Barclays Bank Plc,130842
South Ribble Council,http://statistics.data.gov.uk/doc/local-authority/30UN,Shared Financial Services,Balance Sheet,0030,,14/11/2018,0000442822,"2,033.15",Revenue,Barclays Bank Plc,130842
South Ribble Council,http://statistics.data.gov.uk/doc/local-authority/30UN,Shared Financial Services,Balance Sheet,0030,,14/11/2018,0000442823,"3,908.54",Revenue,Barclays Bank Plc,130842
South Ribble Council,http://statistics.data.gov.uk/doc/local-authority/30UN,Housing,Cap Grant- Improve Grants,C570,DISREPAIR GRANT FOR HEATING INSTALLATION A ADDRESS REDACTED 50% OF QUOTE EXCLUDING ECO FUNDING,28/11/2018,0000443436,"1,000.00",Revenue,Bartons of Duke Street Ltd,132663
South Ribble Council,http://statistics.data.gov.uk/doc/local-authority/30UN,Housing,Cap Grant- Improve Grants,C570,Grant payment towards the cost of supply and installation of heater and tank to 5 Magnolia Road Penwortham. PR1 0PS- 50% ,28/11/2018,0000443486,606.45,Revenue,Bartons of Duke Street Ltd,132663
South Ribble Council,http://statistics.data.gov.uk/doc/local-authority/30UN,Planning,Consultancy Fees,4541,Employment Review,30/11/2018,0000443534,"3,000.00",Revenue,BE LTD,130661
South Ribble Council,http://statistics.data.gov.uk/doc/local-authority/30UN,Property Services,Rep & Maint Premises,2020,Annual Contract 2018/2019 Electrical Testing and Electrical  Installation Test at Leyland Market,07/11/2018,0000443065,432.00,Revenue,BELEC ELECTRICAL LTD,130290
South Ribble Council,http://statistics.data.gov.uk/doc/local-authority/30UN,Property Services,Rep & Maint Premises,2020,Worden Park Electrical Test 2018/2019 for Remedial Works for Worden Park if required,14/11/2018,0000443222,384.00,Revenue,BELEC ELECTRICAL LTD,130290
South Ribble Council,http://statistics.data.gov.uk/doc/local-authority/30UN,Property Services,Rep & Maint Premises,2020,Annual Contract for Electrical Test 2018/2019 for Derby  Wing (1) Worden Park,14/11/2018,0000443223,384.00,Revenue,BELEC ELECTRICAL LTD,130290
South Ribble Council,http://statistics.data.gov.uk/doc/local-authority/30UN,Area 3 - Parks/Leyland East West,Capital Expenditure,C230,Completed electrical connections to the new toilet facilities at Worden Park Crossroads and Playground both inside cabins,21/11/2018,0000443308,812.13,Revenue,BELEC ELECTRICAL LTD,130290
South Ribble Council,http://statistics.data.gov.uk/doc/local-authority/30UN,Property Services,Rep & Maint Premises,2020,Please attend the Civic centre to relocate the electrical trunking to 2nd floor north wing,21/11/2018,0000443335,518.88,Revenue,BELEC ELECTRICAL LTD,130290
South Ribble Council,http://statistics.data.gov.uk/doc/local-authority/30UN,Property Services,Rep & Maint Premises,2020,Annual Contract 2018/2019 Electrical Testing and Electrical  Installation Test at Longton Brickcroft,21/11/2018,0000443365,291.10,Revenue,BELEC ELECTRICAL LTD,130290
South Ribble Council,http://statistics.data.gov.uk/doc/local-authority/30UN,Property Services,Rep & Maint Premises,2020,Install 2 x high bay LED 180 watt fittings at Leyland Market to replace existing caf� lights (SRBC to provide sky lift) as per quote,30/11/2018,0000443481,988.91,Revenue,BELEC ELECTRICAL LTD,130290
South Ribble Council,http://statistics.data.gov.uk/doc/local-authority/30UN,Environmental Health,Subs to Statutory Bodies,4720,1 X ANNUAL CENTRE RECOGNITION FEE - ORCS,28/11/2018,0000443475,500.00,Revenue,BIIAB,132677
South Ribble Council,http://statistics.data.gov.uk/doc/local-authority/30UN,Development Enterprise & Comm Mgnt,Other Expenses,4630,"15 Zoom Bikes, 20 Helmets, 15 seat clamps",21/11/2018,0000443205,"1,800.00",Revenue,BILL NICKSON CYCLES,00009496
South Ribble Council,http://statistics.data.gov.uk/doc/local-authority/30UN,Development Enterprise & Comm Mgnt,Sports Dev Expenses,4894,Various Sports Equipment for Sports Development,07/11/2018,0000442839,584.45,Revenue,Bishop Sports & Leisure Ltd,131843
South Ribble Council,http://statistics.data.gov.uk/doc/local-authority/30UN,Regeneration,Other Misc,4861,Purchase of a War Memorial Interpretation Board,07/11/2018,0000442922,565.00,Revenue,BORDER SIGNS AND GRAPHIX,130927
South Ribble Council,http://statistics.data.gov.uk/doc/local-authority/30UN,Regeneration,Other Misc,4861,Option 1: To mfg A1 GRP MULTIGUARD PANEL with steelframe & fixing bracket for fence mounting,28/11/2018,0000443460,640.00,Revenue,BORDER SIGNS AND GRAPHIX,130927
South Ribble Council,http://statistics.data.gov.uk/doc/local-authority/30UN,Neighbourhood Admin & Support,Rep & Maint Premises,2020,1 x WARDALE CYCLE COMPOUND,09/11/2018,0000443060,"3,766.00",Revenue,BROXAP LTD,00028736
South Ribble Council,http://statistics.data.gov.uk/doc/local-authority/30UN,Neighbourhood Admin & Support,Rep & Maint Premises,2020,2 X SHEFFIELD SENIOR CYCLE RACK,09/11/2018,0000443060,370.00,Revenue,BROXAP LTD,00028736
South Ribble Council,http://statistics.data.gov.uk/doc/local-authority/30UN,Neighbourhood Admin & Support,Rep & Maint Premises,2020,DELIVERY CHARGE,09/11/2018,0000443060,320.00,Revenue,BROXAP LTD,00028736
South Ribble Council,http://statistics.data.gov.uk/doc/local-authority/30UN,Housing,Licence Fees,4884,"BRE DWELLING LEVEL HOUSING STOCK MODELLING, INTEGRATED DATABASE AND LICENCE",28/11/2018,0000443401,"3,200.00",Revenue,BUILDING RESEARCH ESTABLISHMENT LTD,131951
South Ribble Council,http://statistics.data.gov.uk/doc/local-authority/30UN,Housing,Licence Fees,4884,"BRE DWELLING LEVEL HOUSING STOCK MODELLING, INTEGRATED DATABASE AND LICENCE",28/11/2018,0000443402,"10,792.00",Revenue,BUILDING RESEARCH ESTABLISHMENT LTD,131951
South Ribble Council,http://statistics.data.gov.uk/doc/local-authority/30UN,Area 3 - Parks/Leyland East West,Grounds Maint Cntrctrs Chgs,4657,Separator Water Filled Colour White Size 1000MM x 555MM (203012000),21/11/2018,0000443206,616.40,Revenue,Bunzl Greenham,00006169
South Ribble Council,http://statistics.data.gov.uk/doc/local-authority/30UN,Area 3 - Parks/Leyland East West,Grounds Maint Cntrctrs Chgs,4657,Separator Water Filled Colour Red Size 1000MM x 555MM (203014000),21/11/2018,0000443206,616.40,Revenue,Bunzl Greenham,00006169
South Ribble Council,http://statistics.data.gov.uk/doc/local-authority/30UN,HR & Communications,Training Expense-Course Fees,1405,"Equality, Diversity & Inclusion Training 2 x Half Days 31st October 2018 and 1 x Half Day (am) 1st November 2018",14/11/2018,0000443147,"4,450.00",Revenue,Calico Enterprise,132188
South Ribble Council,http://statistics.data.gov.uk/doc/local-authority/30UN,Revenues Plus,Peripherals,4242,DWP LA Data Sharing Programme: IT Costs for work up to 30 September 2018,14/11/2018,0000443164,"10,767.14",Revenue,CAPITA BUSINESS SERVICES LTD,00117948
South Ribble Council,http://statistics.data.gov.uk/doc/local-authority/30UN,Chief Executive`s Management,Recruitment Expenses,1510,FINAL STAGE - DEPUTY CHIEF EXECUTIVE,07/11/2018,0000443019,"1,900.00",Revenue,CAPITA RESOURCING LTD,132257
South Ribble Council,http://statistics.data.gov.uk/doc/local-authority/30UN,Chief Executive`s Management,Recruitment Expenses,1510,PSYCHOMETRICS ASSISTANT DIRECTOR,07/11/2018,0000443020,"2,000.00",Revenue,CAPITA RESOURCING LTD,132257
South Ribble Council,http://statistics.data.gov.uk/doc/local-authority/30UN,Chief Executive`s Management,Recruitment Expenses,1510,PSYCHOMETRICS - DEPUTY CHIEF EXECUTIVE - REGENERATION AND GROWTH 2ND ASSESSMENT,07/11/2018,0000443068,"3,000.00",Revenue,CAPITA RESOURCING LTD,132257
South Ribble Council,http://statistics.data.gov.uk/doc/local-authority/30UN,HR & Communications,Agency Fees,1121,APPOINTMENT OF THE INTERIM SECTION 151/DCEO FOR 3 MONTH PERIOD,30/11/2018,0000443291,"2,340.00",Revenue,CAPITA RESOURCING LTD,132257
South Ribble Council,http://statistics.data.gov.uk/doc/local-authority/30UN,HR & Communications,Agency Fees,1121,APPOINTMENT OF THE INTERIM SECTION 151/DCEO FOR 3 MONTH PERIOD,30/11/2018,0000443292,"20,280.00",Revenue,CAPITA RESOURCING LTD,132257
South Ribble Council,http://statistics.data.gov.uk/doc/local-authority/30UN,Environmental Health,Licence Fees,488B,mgmt fee 3rd qtr 18 dec 18,14/11/2018,0000443193,"1,125.00",Revenue,Carr Street Community Centre,130312
South Ribble Council,http://statistics.data.gov.uk/doc/local-authority/30UN,Homelessness,Contributions,4730,ADDRESS REDACTED Oct 2018 31 days @ 35.28 + vat,07/11/2018,0000443072,"1,093.68",Revenue,CHORLEY BOROUGH COUNCIL,00017352
South Ribble Council,http://statistics.data.gov.uk/doc/local-authority/30UN,Homelessness,Contractors Charges 5,5311,ADDRESS REDACTED SRBC placement CT & NS 14 days @ 35.28 per day + vat,07/11/2018,0000443073,493.92,Revenue,CHORLEY BOROUGH COUNCIL,00017352
South Ribble Council,http://statistics.data.gov.uk/doc/local-authority/30UN,Property Services,Rep & Maint Fixed Plant,2035,To replace the external movement detectors on the CCTV system at the Civic Centre as per quotation 648102.Contact caretakers,30/11/2018,0000443463,"1,999.78",Revenue,CHUBB LTD,00090625
South Ribble Council,http://statistics.data.gov.uk/doc/local-authority/30UN,Area 2 - Waste Transport/Eastern & Central Teams,External Contractors Charges,4570,SPEC REPAIR - JFC11238 - PJ62UCG,07/11/2018,0000442059,"1,256.00",Revenue,CICELEY COMMERCIALS LTD,00059381
South Ribble Council,http://statistics.data.gov.uk/doc/local-authority/30UN,Area 2 - Waste Transport/Eastern & Central Teams,Materials General,4040,1 ad blu pump PJ62 UCL JFC11311,07/11/2018,0000443083,810.87,Revenue,CICELEY COMMERCIALS LTD,00059381
South Ribble Council,http://statistics.data.gov.uk/doc/local-authority/30UN,Development Enterprise & Comm Mgnt,Contributions,4730,South Ribble Citizens Advice Bureau  Core funding for Citizens Advice Services for South Ribble 1 April 2018  31 March 2019 ,21/11/2018,0000443021,"20,000.00",Revenue,Citizens Advice Lancashire,00017349
South Ribble Council,http://statistics.data.gov.uk/doc/local-authority/30UN,Development Enterprise & Comm Mgnt,Other Misc,4851,NW 2018 Stand Alone Edition Double page colour introduction to South Ribble at the agreed special rate 684.00 for the first page,30/11/2018,0000442319,"1,254.00",Revenue,COMMERCIAL PROPERTY MONTHLY,00116211
South Ribble Council,http://statistics.data.gov.uk/doc/local-authority/30UN,Regeneration,Capital Expenditure,C230,Purchase of four planters (385 each) for eight signs (120 for 8 signs) for Bamber Bridge Railway Station as agreed by the Frien,23/11/2018,0000442971,"1,660.00",Revenue,Community Rail Lancashire Ltd.,132666
South Ribble Council,http://statistics.data.gov.uk/doc/local-authority/30UN,HR & Communications,Balance Sheet,0030,CHILDCARE VOUCHERS - OCTOBER 2018,14/11/2018,0000442658,"2,158.50",Revenue,COMPUTERSHARE VOUCHER SERVICES,00116499
South Ribble Council,http://statistics.data.gov.uk/doc/local-authority/30UN,HR & Communications,Balance Sheet,0030,CHILDCARE VOUCHERS - NOVEMBER 2018,14/11/2018,0000443129,"2,158.50",Revenue,COMPUTERSHARE VOUCHER SERVICES,00116499
South Ribble Council,http://statistics.data.gov.uk/doc/local-authority/30UN,Development Enterprise & Comm Mgnt,Other Misc,4851, Batteries for Leyland Christmas Festival  - 2018 D Cell type for Christmas trees @250,28/11/2018,0000443406,288.30,Revenue,CPC Re: COMBINED PRECISION COMPONENTS PLC,00017954
South Ribble Council,http://statistics.data.gov.uk/doc/local-authority/30UN,Revenues Plus,Postage,4291,Postage September - December 2018,02/11/2018,0000443000,519.35,Revenue,CRITIQOM,131053
South Ribble Council,http://statistics.data.gov.uk/doc/local-authority/30UN,Revenues Plus,Stationery,4130,Stationery September - December 2018,09/11/2018,0000443117,977.50,Revenue,CRITIQOM,131053
South Ribble Council,http://statistics.data.gov.uk/doc/local-authority/30UN,Revenues Plus,Postage,4291,Postage September - December 2018,21/11/2018,0000443317,654.81,Revenue,CRITIQOM,131053
South Ribble Council,http://statistics.data.gov.uk/doc/local-authority/30UN,Revenues Plus,Postage,4291,Postage September - December 2018,28/11/2018,0000443441,425.24,Revenue,CRITIQOM,131053
South Ribble Council,http://statistics.data.gov.uk/doc/local-authority/30UN,Property Services,Rep & Maint Premises,2020,Annual Contract for maintenance of 1 x  McSmart 240cr Industrial Water Chiller  and 1 x McQuay Air Handling Unit Schedule 1,23/11/2018,0000443407,525.00,Revenue,DAIKIN APPLIED SERVICE,130324
South Ribble Council,http://statistics.data.gov.uk/doc/local-authority/30UN,Development Enterprise & Comm Mgnt,Professional Fees,4510,Bikeability Training at Various Schools between 19th September 2018 and 18th October 2018,30/11/2018,0000443503,720.00,Revenue,David Evans,132686
South Ribble Council,http://statistics.data.gov.uk/doc/local-authority/30UN,Area 2 - Waste Transport/Eastern & Central Teams,Materials General,4040,SPEC REPAIR - JFC11575 - VO65KPY,14/11/2018,0000443260,570.32,Revenue,DENNIS EAGLE LTD,00019774
South Ribble Council,http://statistics.data.gov.uk/doc/local-authority/30UN,Area 3 - Parks/Leyland East West,Materials General,4040,"4 water hoses, 1 header tank, VO65 KPZ, JFC11335",30/11/2018,0000443559,305.56,Revenue,DENNIS EAGLE LTD,00019774
South Ribble Council,http://statistics.data.gov.uk/doc/local-authority/30UN,Area 3 - Parks/Leyland East West,Operational Furniture & Equip,4010,2 back pack blowers BR600,23/11/2018,0000443211,778.00,Revenue,DICK LEIGH,00026534
South Ribble Council,http://statistics.data.gov.uk/doc/local-authority/30UN,Area 3 - Parks/Leyland East West,Operational Furniture & Equip,4010,1 HS87R 30 single sided hedge cutter,23/11/2018,0000443211,350.00,Revenue,DICK LEIGH,00026534
South Ribble Council,http://statistics.data.gov.uk/doc/local-authority/30UN,Area 3 - Parks/Leyland East West,Operational Furniture & Equip,4010,"1 Depth Gauge 1 flat file1 retractable DBH diameter tape",23/11/2018,0000443211,43.77,Revenue,DICK LEIGH,00026534
South Ribble Council,http://statistics.data.gov.uk/doc/local-authority/30UN,Regeneration,Other Misc,4861,"For the delivery of approximately 6,200 newsletter and Christmas What`s On Guides to the homes in the Western Parishes ",28/11/2018,0000443143,450.00,Revenue,Door2doornorthwest,131705
South Ribble Council,http://statistics.data.gov.uk/doc/local-authority/30UN,Healthy Communities,Capital Expenditure,C230,Drainage Works at Penwortham Holme Recreation Centre,23/11/2018,0000443408,"63,420.86",Revenue,DUNCAN ROSS LIMITED,130432
South Ribble Council,http://statistics.data.gov.uk/doc/local-authority/30UN,Information Services,Peripherals,4260,,09/11/2018,0000443137,"2,590.08",Revenue,EE Ltd,131653
South Ribble Council,http://statistics.data.gov.uk/doc/local-authority/30UN,Information Services,Peripherals,4260,non vat,09/11/2018,0000443137,24.63,Revenue,EE Ltd,131653
South Ribble Council,http://statistics.data.gov.uk/doc/local-authority/30UN,Property Services,Operational Furniture & Equip,4010,To supply tables for Conference room at SRBC,02/11/2018,0000442852,"1,224.00",Revenue,EQUIP4WORK LTD T/A OFFICE FURNATURE,130817
South Ribble Council,http://statistics.data.gov.uk/doc/local-authority/30UN,Area 3 - Parks/Leyland East West,External Contractors Charges,4570,Hire of McConnel PA3430 Flail for 6 weeks (Friday 19th October - Friday 30th November 2018),09/11/2018,0000442896,666.67,Revenue,F R SHARROCK LTD,00034539
South Ribble Council,http://statistics.data.gov.uk/doc/local-authority/30UN,Area 3 - Parks/Leyland East West,External Contractors Charges,4570,Hire of McConnel PA3430 Flail for 6 weeks (Friday 19th October - Friday 30th November 2018),30/11/2018,0000443557,"1,833.35",Revenue,F R SHARROCK LTD,00034539
South Ribble Council,http://statistics.data.gov.uk/doc/local-authority/30UN,Area 2 - Waste Transport/Eastern & Central Teams,External Contractors Charges,4570,Additional Clinical Waste Collections - October 2018,14/11/2018,0000443153,318.01,Revenue,FCC Environment Services (UK) Ltd,131612
South Ribble Council,http://statistics.data.gov.uk/doc/local-authority/30UN,Area 2 - Waste Transport/Eastern & Central Teams,External Contractors Charges,4570,Additional bulky waste collections October 2018,14/11/2018,0000443154,473.76,Revenue,FCC Environment Services (UK) Ltd,131612
South Ribble Council,http://statistics.data.gov.uk/doc/local-authority/30UN,Area 2 - Waste Transport/Eastern & Central Teams,External Contractors Charges,4570,Additional WEEE collections October 2018,14/11/2018,0000443154,355.95,Revenue,FCC Environment Services (UK) Ltd,131612
South Ribble Council,http://statistics.data.gov.uk/doc/local-authority/30UN,Area 2 - Waste Transport/Eastern & Central Teams,External Contractors Charges,4570,RESIDUAL WASET COLLECTIONS OCTOBER 2018,23/11/2018,0000443474,"42,482.57",Revenue,FCC Environment Services (UK) Ltd,131612
South Ribble Council,http://statistics.data.gov.uk/doc/local-authority/30UN,Area 2 - Waste Transport/Eastern & Central Teams,External Contractors Charges,4570,DRY RECYCLABLE NON-TERRACED OCTOBER 2018,23/11/2018,0000443474,"43,506.64",Revenue,FCC Environment Services (UK) Ltd,131612
South Ribble Council,http://statistics.data.gov.uk/doc/local-authority/30UN,Area 2 - Waste Transport/Eastern & Central Teams,External Contractors Charges,4570,DRY RECYCLABLE TERRACED OCTOBER 2018,23/11/2018,0000443474,"2,066.66",Revenue,FCC Environment Services (UK) Ltd,131612
South Ribble Council,http://statistics.data.gov.uk/doc/local-authority/30UN,Area 2 - Waste Transport/Eastern & Central Teams,External Contractors Charges,4570,ORGANIC WASTE COLLECTIONS OCTOBER 2018,23/11/2018,0000443474,"30,151.91",Revenue,FCC Environment Services (UK) Ltd,131612
South Ribble Council,http://statistics.data.gov.uk/doc/local-authority/30UN,Area 2 - Waste Transport/Eastern & Central Teams,External Contractors Charges,4570,SCHEDULE 2 PROPERTIES OCTOBER 2018,23/11/2018,0000443474,"1,725.43",Revenue,FCC Environment Services (UK) Ltd,131612
South Ribble Council,http://statistics.data.gov.uk/doc/local-authority/30UN,Area 2 - Waste Transport/Eastern & Central Teams,External Contractors Charges,4570,COMMERCIAL WASTE COLLECTIONS OCTOBER 2018,23/11/2018,0000443474,"6,761.80",Revenue,FCC Environment Services (UK) Ltd,131612
South Ribble Council,http://statistics.data.gov.uk/doc/local-authority/30UN,Area 2 - Waste Transport/Eastern & Central Teams,External Contractors Charges,4570,BULKY WASTE COLLECTIONS OCTOBER 2018,23/11/2018,0000443474,934.56,Revenue,FCC Environment Services (UK) Ltd,131612
South Ribble Council,http://statistics.data.gov.uk/doc/local-authority/30UN,Area 2 - Waste Transport/Eastern & Central Teams,External Contractors Charges,4570,WEEE COLLECTIONS OCTOBER 2018,23/11/2018,0000443474,349.34,Revenue,FCC Environment Services (UK) Ltd,131612
South Ribble Council,http://statistics.data.gov.uk/doc/local-authority/30UN,Area 2 - Waste Transport/Eastern & Central Teams,External Contractors Charges,4570,CLINICAL WASTE COLLECTIONS OCTOBER 2018,23/11/2018,0000443474,594.92,Revenue,FCC Environment Services (UK) Ltd,131612
South Ribble Council,http://statistics.data.gov.uk/doc/local-authority/30UN,Area 2 - Waste Transport/Eastern & Central Teams,External Contractors Charges,4570,REPLACEMENT BINS OCTOBER 2018,23/11/2018,0000443474,"5,000.00",Revenue,FCC Environment Services (UK) Ltd,131612
South Ribble Council,http://statistics.data.gov.uk/doc/local-authority/30UN,Area 2 - Waste Transport/Eastern & Central Teams,External Contractors Charges,4570,ADDITIONAL PROPERTIES OCTOBER 2018,23/11/2018,0000443474,"1,880.44",Revenue,FCC Environment Services (UK) Ltd,131612
South Ribble Council,http://statistics.data.gov.uk/doc/local-authority/30UN,Regeneration,Other Misc,4861,Christmas lights for Gregson Lane,28/11/2018,0000443493,307.41,Revenue,FESTIVE LIGHTS,130235
South Ribble Council,http://statistics.data.gov.uk/doc/local-authority/30UN,Neighbourhood Admin & Support,Materials General,4040,FOOTBALL PITCH LINE MARKER PAINT - PITCHMARKER Q2,23/11/2018,0000443465,696.00,Revenue,Fleet Line Markers Limited,131942
South Ribble Council,http://statistics.data.gov.uk/doc/local-authority/30UN,Area 3 - Parks/Leyland East West,Materials General,4040,5no of 1.5m x 1.2m fishing pegs with 4 x 2m posts in brown @ 318 each = 1590 4no of 1.5m x 1.2m fishing pegs 4 x 1.5m,30/11/2018,0000443466,"2,846.00",Revenue,Fletcher Contracting Ltd,132638
South Ribble Council,http://statistics.data.gov.uk/doc/local-authority/30UN,Development Enterprise & Comm Mgnt,Professional Fees,4510,Bikeability Coaching at Various Schools September � October 2018 360.00,09/11/2018,0000443110,360.00,Revenue,Gareth Piper,132576
South Ribble Council,http://statistics.data.gov.uk/doc/local-authority/30UN,Development Enterprise & Comm Mgnt,Printing,4125,Full set of Ink cartridges - HP764 1 X Grey - 300ml 1 x Sian - 300ml 1 x Matte Black - 300ml 1 x Magenta - 300ml x Yellow 300ml,30/11/2018,0000443467,592.02,Revenue,GCS UK ASSOCIATES LTD,130671
South Ribble Council,http://statistics.data.gov.uk/doc/local-authority/30UN,Area 2 - Waste Transport/Eastern & Central Teams,Materials General,4040,"1 ROD ASSEMBLY, 1 LIFT ARM ASSEMBLY - PO61 MJJ - JFC11408 -BO",07/11/2018,0000443004,611.80,Revenue,GIBSONS GARDEN MACHINERY LTD,00059051
South Ribble Council,http://statistics.data.gov.uk/doc/local-authority/30UN,Area 2 - Waste Transport/Eastern & Central Teams,Materials General,4040,1 ENGINE - PMR19A2 - JFC11474 - BO,28/11/2018,0000443489,929.94,Revenue,GIBSONS GARDEN MACHINERY LTD,00059051
South Ribble Council,http://statistics.data.gov.uk/doc/local-authority/30UN,Area 2 - Waste Transport/Eastern & Central Teams,Materials General,4040,ENGINE - PMR18A2 - JFC11093 - BO,28/11/2018,0000443490,929.94,Revenue,GIBSONS GARDEN MACHINERY LTD,00059051
South Ribble Council,http://statistics.data.gov.uk/doc/local-authority/30UN,Democratic Services,External Contractors Charges,4575,11 NOV 18 AS DISCUSSED WITH NAME REDACTED:160 PORTIONS OF HOT POT 40 PORTIONS OF BUTTER PIE 200 POR,28/11/2018,0000443432,650.00,Revenue,GLOVERS BAKERY LTD,00102416
South Ribble Council,http://statistics.data.gov.uk/doc/local-authority/30UN,Environmental Health,Other Expenses,463A,Supply of wine for Mayoral event on 18.5.18.,07/11/2018,0000442790,420.00,Revenue,GODWIN ENT LTD T/A MARKET ALE HOUSE,131202
South Ribble Council,http://statistics.data.gov.uk/doc/local-authority/30UN,Housing,Cap Grant- Improve Grants,C570,DFG WORKS TO BATHROOM AT ADDRESS REDACTED AS PER QUOTE SUPPLIED COST 3859.00,28/11/2018,0000443496,"3,859.00",Revenue,GOS Heating Ltd,131387
South Ribble Council,http://statistics.data.gov.uk/doc/local-authority/30UN,Shared Financial Services,Pensions Increase Act Payments,1701,Rechargeable Pension Costs 2018-19,28/11/2018,0000443468,"6,554.40",Revenue,GREATER MANCHESTER PENSION FUND,00022538
South Ribble Council,http://statistics.data.gov.uk/doc/local-authority/30UN,Area 3 - Parks/Leyland East West,Grounds Maint Cntrctrs Chgs,4657,"Repair & Covering Safety Surfacing at Farington Park, Much Hoole and Tardy Gate Playground.",30/11/2018,0000443532,"5,250.00",Revenue,GROUNDWORK LEISURE SERVICES LTD,130104
South Ribble Council,http://statistics.data.gov.uk/doc/local-authority/30UN,Area 3 - Parks/Leyland East West,Grounds Maint Cntrctrs Chgs,4657,"Repair & Covering Safety Surfacing at Farington Park, Much Hoole and Tardy Gate Playground.",30/11/2018,0000443532,"14,700.00",Revenue,GROUNDWORK LEISURE SERVICES LTD,130104
South Ribble Council,http://statistics.data.gov.uk/doc/local-authority/30UN,Area 3 - Parks/Leyland East West,Grounds Maint Cntrctrs Chgs,4657,"Repair & Covering Safety Surfacing at Farington Park, Much Hoole and Tardy Gate Playground.",30/11/2018,0000443532,"1,050.00",Revenue,GROUNDWORK LEISURE SERVICES LTD,130104
South Ribble Council,http://statistics.data.gov.uk/doc/local-authority/30UN,Area 2 - Waste Transport/Eastern & Central Teams,Contract Hire & Lease Costs,3212,HIRE OF MECHANICAL ROAD SWEEPER W/C 22/10/18,07/11/2018,0000442960,630.00,Revenue,GULLIVERS TRUCK HIRE LTD,130582
South Ribble Council,http://statistics.data.gov.uk/doc/local-authority/30UN,Area 2 - Waste Transport/Eastern & Central Teams,Contract Hire & Lease Costs,3212,delivery/collection,07/11/2018,0000442960,120.00,Revenue,GULLIVERS TRUCK HIRE LTD,130582
South Ribble Council,http://statistics.data.gov.uk/doc/local-authority/30UN,Area 2 - Waste Transport/Eastern & Central Teams,Materials General,4040,FILTERS - IMPREST STOCK,30/11/2018,0000443477,404.83,Revenue,H & J SERVICES LTD,00114446
South Ribble Council,http://statistics.data.gov.uk/doc/local-authority/30UN,Neighbourhood Admin & Support,Vehicle Running Costs,3132,"15,000 LITRES DIESEL (@109.46 pence per litre)",14/11/2018,0000443201,"10,874.85",Revenue,Hall Fuels trading name of WFL (UK) Ltd,00116758
South Ribble Council,http://statistics.data.gov.uk/doc/local-authority/30UN,Neighbourhood Admin & Support,Vehicle Running Costs,3132,"15,000 LITRES DIESEL (@109.46 pence per litre)",14/11/2018,0000443207,"5,474.09",Revenue,Hall Fuels trading name of WFL (UK) Ltd,00116758
South Ribble Council,http://statistics.data.gov.uk/doc/local-authority/30UN,Neighbourhood Admin & Support,Vehicle Running Costs,3134,"2,000 LITRES GAS OIL (@ 64.75 pence per litre)",14/11/2018,0000443208,"1,294.35",Revenue,Hall Fuels trading name of WFL (UK) Ltd,00116758
South Ribble Council,http://statistics.data.gov.uk/doc/local-authority/30UN,Neighbourhood Admin & Support,Vehicle Running Costs,3132,"15,000 LITRES DIESEL (@1.0688 per litre)",30/11/2018,0000443554,"16,034.14",Revenue,Hall Fuels trading name of WFL (UK) Ltd,00116758
South Ribble Council,http://statistics.data.gov.uk/doc/local-authority/30UN,Shared Assurance Services,Agency Fees,1121,NAME REDACTED - interim Audit & Risk Manager for week ending period 15-10-2018 - 29-04-2018 Calculated standard week,30/11/2018,0000443528,"1,532.90",Revenue,Hays Specialist Recruitment Ltd,132288
South Ribble Council,http://statistics.data.gov.uk/doc/local-authority/30UN,HR & Communications,Agency Fees,1121,PLACEMENT FEE FOR INTERIM ADVISOR - NAME REDACTED,30/11/2018,0000443561,"2,469.25",Revenue,Hays Specialist Recruitment Ltd,132288
South Ribble Council,http://statistics.data.gov.uk/doc/local-authority/30UN,Revenues Plus,Professional Fees,4520,Exempt Accom Course January 2019 for NAMES REDACTED,16/11/2018,0000443262,520.00,Revenue,HBINFO LTD,00120883
South Ribble Council,http://statistics.data.gov.uk/doc/local-authority/30UN,Area 3 - Parks/Leyland East West,Capital Expenditure,C230,"MATERIALS Design, supply installation of 2 No 3 cubicle semi-auto toilet block including pressure washers H2 control systems",21/11/2018,0000443048,"27,900.00",Revenue,Healthmatic Limited,132565
South Ribble Council,http://statistics.data.gov.uk/doc/local-authority/30UN,Area 3 - Parks/Leyland East West,Capital Expenditure,C230,LABOUR,21/11/2018,0000443048,"3,100.00",Revenue,Healthmatic Limited,132565
South Ribble Council,http://statistics.data.gov.uk/doc/local-authority/30UN,Area 3 - Parks/Leyland East West,Capital Expenditure,C230,"MATERIALS ONLY Design, supply and installation of 2 No 3 cubicle semi-automatic toilet block including pressure washers ",23/11/2018,0000443116,"97,000.00",Revenue,Healthmatic Limited,132565
South Ribble Council,http://statistics.data.gov.uk/doc/local-authority/30UN,Environmental Health,Licence Fees,488B,3rd qtr,14/11/2018,0000443194,"1,000.00",Revenue,HIGHER WALTON COMMUNITY CENTRE,00070535
South Ribble Council,http://statistics.data.gov.uk/doc/local-authority/30UN,Shared Financial Services,Balance Sheet,0140,,09/11/2018,0000442925,"1,711.80",Revenue,HM REVENUE & CUSTOMS,00024837
South Ribble Council,http://statistics.data.gov.uk/doc/local-authority/30UN,Neighbourhood Admin & Support,Rep & Maint Premises,2020,LEYLAND MARKET - Prepare and paint all metal work and replace down spouts,09/11/2018,0000443148,"2,232.95",Revenue,Holden Building Solutions Limited,132607
South Ribble Council,http://statistics.data.gov.uk/doc/local-authority/30UN,Neighbourhood Admin & Support,Rep & Maint Premises,2020,MATERIALS,09/11/2018,0000443148,"2,497.50",Revenue,Holden Building Solutions Limited,132607
South Ribble Council,http://statistics.data.gov.uk/doc/local-authority/30UN,HR & Communications,Advertising,4848,"Assignment: Take photographs of the Leader of the Council, Cllr NAME REDACTED Date: Tuesday 20th November  ",30/11/2018,0000443527,100.00,Revenue,IAN ROBINSON,132041
South Ribble Council,http://statistics.data.gov.uk/doc/local-authority/30UN,HR & Communications,Advertising,4848,Assignment: Take photographs of Leyland Cross Christmas Lights Date: Friday 23rd November 20185 Time: 5pm - 7pm,30/11/2018,0000443527,175.00,Revenue,IAN ROBINSON,132041
South Ribble Council,http://statistics.data.gov.uk/doc/local-authority/30UN,Environmental Health,Other Misc,4851,For the analysis of the Community Strategy survey data.,23/11/2018,0000443411,"2,790.00",Revenue,IDA INDEPENDENT DATA ANALYSIS LIMITED,132655
South Ribble Council,http://statistics.data.gov.uk/doc/local-authority/30UN,Democratic Services,Other Misc,4970,PART 1 - INTERACTIVE VOTER REGISTRATION (AUTOMATED RESPONSE CHANNELS FOR ANNUAL CANVASS),21/11/2018,0000442326,"6,754.57",Revenue,IDOX PLC,00104485
South Ribble Council,http://statistics.data.gov.uk/doc/local-authority/30UN,Revenues Plus,Professional Fees,4510,RV Finder - Old Oak Nurseries,28/11/2018,0000443541,482.50,Revenue,Inform CPI Ltd,131666
South Ribble Council,http://statistics.data.gov.uk/doc/local-authority/30UN,Information Services,Financial,4813,"Data Protection renewal fee for South Ribble Borough Council, order reference no. 00792713040d, reference Z496241X, for period",14/11/2018,0000443209,"2,900.00",Revenue,INFORMATION COMMISSIONER,00053293
South Ribble Council,http://statistics.data.gov.uk/doc/local-authority/30UN,Area 3 - Parks/Leyland East West,Materials General,4046,2018/19 TREE PLANTING,23/11/2018,0000443444,962.00,Revenue,J A JONES & SONS,00025548
South Ribble Council,http://statistics.data.gov.uk/doc/local-authority/30UN,Neighbourhood Admin & Support,External Contractors Charges,4570,Emptying of Interceptor @ Unit 81 Bison Place Moss Side on Tuesday 6th November 2018 as per Quotation DTS11297Q1018,16/11/2018,0000443263,795.00,Revenue,J SEED & CO LTD,00121675
South Ribble Council,http://statistics.data.gov.uk/doc/local-authority/30UN,Regeneration,Capital Expenditure,C230,Renovations of Civic Suite,21/11/2018,0000442301,"60,000.00",Revenue,John Wade Groundworks Ltd t/a Wade Group,131568
South Ribble Council,http://statistics.data.gov.uk/doc/local-authority/30UN,Planning,Advertising,4841,Press notices for planning applications 2018/19,14/11/2018,0000442666,540.00,Revenue,JPI Media - JOHNSTON PUBLISHING (NORTH WEST),00011345
South Ribble Council,http://statistics.data.gov.uk/doc/local-authority/30UN,Planning,Advertising,4841,Press notices for planning applications 2018/19,14/11/2018,0000443059,"1,188.00",Revenue,JPI Media - JOHNSTON PUBLISHING (NORTH WEST),00011345
South Ribble Council,http://statistics.data.gov.uk/doc/local-authority/30UN,Planning,Advertising,4841,Press notices for planning applications 2018/19,30/11/2018,0000443361,540.00,Revenue,JPI Media - JOHNSTON PUBLISHING (NORTH WEST),00011345
South Ribble Council,http://statistics.data.gov.uk/doc/local-authority/30UN,Planning,Advertising,4841,Press notices for planning applications 2018/19,30/11/2018,0000443362,567.00,Revenue,JPI Media - JOHNSTON PUBLISHING (NORTH WEST),00011345
South Ribble Council,http://statistics.data.gov.uk/doc/local-authority/30UN,Area 3 - Parks/Leyland East West,Grounds Maint Cntrctrs Chgs,4657,HIRE OF TRACKED CHERRY PICKER - ON HIRE 9TH AND 10TH OCTOBER 2018.,14/11/2018,0000443044,125.00,Revenue,K H HIRE SERVICES,00012933
South Ribble Council,http://statistics.data.gov.uk/doc/local-authority/30UN,Area 3 - Parks/Leyland East West,Grounds Maint Cntrctrs Chgs,4657,HIRE OF TRACKED CHERRY PICKER - ON HIRE 9TH AND 10TH OCTOBER 2018.,14/11/2018,0000443044,20.00,Revenue,K H HIRE SERVICES,00012933
South Ribble Council,http://statistics.data.gov.uk/doc/local-authority/30UN,Area 3 - Parks/Leyland East West,Grounds Maint Cntrctrs Chgs,4657,HIRE OF TRACKED CHERRY PICKER - ON HIRE 9TH AND 10TH OCTOBER 2018.,14/11/2018,0000443044,125.00,Revenue,K H HIRE SERVICES,00012933
South Ribble Council,http://statistics.data.gov.uk/doc/local-authority/30UN,HR & Communications,Training Expense-Course Fees,1403,Dissertation for Masters Criminology and Criminal Psychology Start Date: November 2018 Student Name: NAME REDACTED,14/11/2018,0000443176,"3,182.40",Revenue,Kaplan Open Learning (Essex) Limited,132678
South Ribble Council,http://statistics.data.gov.uk/doc/local-authority/30UN,Homelessness,Contributions,4730,Pre-tenancy training October 18 - March 19,14/11/2018,0000443247,"2,500.00",Revenue,KEY UNLOCKING FUTURES LTD,00098601
South Ribble Council,http://statistics.data.gov.uk/doc/local-authority/30UN,Planning,Professional Fees,4510,Acting witness for Bellway Brindle Road Appeal  Tuesday 14th August - Friday 17th August,21/11/2018,0000442897,"13,500.00",Revenue,KIRKWELLS LIMITED,132643
South Ribble Council,http://statistics.data.gov.uk/doc/local-authority/30UN,Development Enterprise & Comm Mgnt,Other Misc,485K,"Production of South Ribble Business Magazine 2018 as set out in cost outline supplied on 27th July. Copy researched, drafted",14/11/2018,0000441936,"2,352.00",Revenue,KR Public Relations Ltd,132620
South Ribble Council,http://statistics.data.gov.uk/doc/local-authority/30UN,Planning,Professional Fees,4510,Investment Property Strategy 2018/19,30/11/2018,0000443091,"4,737.90",Revenue,Lambert Smith Hampton Investment Management Ltd,132594
South Ribble Council,http://statistics.data.gov.uk/doc/local-authority/30UN,Area 2 - Waste Transport/Eastern & Central Teams,Waste Disposal Charges,5112,September 2018 - Incineration of Clinical Waste,23/11/2018,0000443433,656.26,Revenue,LANCASHIRE TEACHING FT,00120715
South Ribble Council,http://statistics.data.gov.uk/doc/local-authority/30UN,Area 2 - Waste Transport/Eastern & Central Teams,Waste Disposal Charges,5112,August 2018 - Incineration of Clinical Waste,23/11/2018,0000443470,545.49,Revenue,LANCASHIRE TEACHING FT,00120715
South Ribble Council,http://statistics.data.gov.uk/doc/local-authority/30UN,Area 2 - Waste Transport/Eastern & Central Teams,External Contractors Charges,4570,SPEC REPAIR - VK09AHJ - JFC11165 - TH,21/11/2018,0000443046,"1,649.87",Revenue,Lancashire Waste Services Limited,131510
South Ribble Council,http://statistics.data.gov.uk/doc/local-authority/30UN,Area 1 - Penwortham Western Parishes,Professional Fees,4516,Back office processing July - September 2018 192 PCN @ 3.45,07/11/2018,0000443045,662.40,Revenue,LANCS COUNTY COUNCIL,00041645
South Ribble Council,http://statistics.data.gov.uk/doc/local-authority/30UN,Area 1 - Penwortham Western Parishes,Professional Fees,4516,TEC Recharges July - September 2018 10 @ 8.00,07/11/2018,0000443045,80.00,Revenue,LANCS COUNTY COUNCIL,00041645
South Ribble Council,http://statistics.data.gov.uk/doc/local-authority/30UN,Housing,Cap Grant- Improve Grants,C570,"DFG WORKS FOR STAIRLIFT AS PER QUOTE PROVIDED OF 6159.00- CLIENT HAS A CONTRIBUTION OF 2120.49 COST",07/11/2018,0000443051,"4,038.51",Revenue,LANCS COUNTY COUNCIL,00041645
South Ribble Council,http://statistics.data.gov.uk/doc/local-authority/30UN,Housing,Cap Grant- Improve Grants,C570,SUPPLY AND INSTALL STAIRLIFT A ADDRESS REDACTED AS PER QUOTE SUPPLIE TOTAL COST 6594.00,09/11/2018,0000443113,"6,594.00",Revenue,LANCS COUNTY COUNCIL,00041645
South Ribble Council,http://statistics.data.gov.uk/doc/local-authority/30UN,Housing,Cap Grant- Improve Grants,C570,DFG WORKS FOR SUPPLY AND INSTALLATION OF A STAIRLIFT AT ADDRESS REDACTED AS PER QUOTE COST,09/11/2018,0000443180,"2,406.00",Revenue,LANCS COUNTY COUNCIL,00041645
South Ribble Council,http://statistics.data.gov.uk/doc/local-authority/30UN,Legal,Other Local Authorities,4530,LAND CHARGES - OCTOBER 2018,09/11/2018,0000443184,"1,314.50",Revenue,LANCS COUNTY COUNCIL,00041645
South Ribble Council,http://statistics.data.gov.uk/doc/local-authority/30UN,Housing,Cap Grant- Improve Grants,C570,DFG WORKS FOR STAIRLIFT ATADDRESS REDACTED AS PER YOUR QUOTE SUPPLIED FROM LCCCOST 2525.00,16/11/2018,0000443287,"3,700.00",Revenue,LANCS COUNTY COUNCIL,00041645
South Ribble Council,http://statistics.data.gov.uk/doc/local-authority/30UN,Shared Financial Services,Contributions,4730,New Homes Bonus Qtr. 3 (2018/2019),23/11/2018,0000443356,"246,049.50",Revenue,LANCS COUNTY COUNCIL,00041645
South Ribble Council,http://statistics.data.gov.uk/doc/local-authority/30UN,Information Services,Peripherals,4246,Annual rental for SRBC/CBC link for period 01/04/18 - 31/03/19,28/11/2018,0000443499,"4,727.42",Revenue,LANCS COUNTY COUNCIL,00041645
South Ribble Council,http://statistics.data.gov.uk/doc/local-authority/30UN,Information Services,Peripherals,4248,GIS contract renewal for period 01/04/18 - 31/03/19,28/11/2018,0000443500,"7,578.00",Revenue,LANCS COUNTY COUNCIL,00041645
South Ribble Council,http://statistics.data.gov.uk/doc/local-authority/30UN,Area 2 - Waste Transport/Eastern & Central Teams,Materials General,4040,1 VALVE PJ62 UCL JFC11311,07/11/2018,0000443081,370.00,Revenue,LANCS DAF,00026424
South Ribble Council,http://statistics.data.gov.uk/doc/local-authority/30UN,Planning,Printing,4125,Lease Rental for 11.06.18 - 10.06.19,07/11/2018,0000443088,"1,426.25",Revenue,LDF FINANCE No1 LTD,131373
South Ribble Council,http://statistics.data.gov.uk/doc/local-authority/30UN,Property Services,Rep & Maint Premises,2024,"Attend Holland House Pavilion and do repairs as per your quotation and visit with NAME REDACTED - to the Hinge, repair mesh ",07/11/2018,0000443094,390.00,Revenue,Leyland Lane Wrought Iron Gates & Railings,132012
South Ribble Council,http://statistics.data.gov.uk/doc/local-authority/30UN,Healthy Communities,Grants to Vol Bodies,4711,grant funding for coaching,21/11/2018,0000443191,250.00,Revenue,LEYLAND WARRIORS RUGBY LEAGUE CLUB,130864
South Ribble Council,http://statistics.data.gov.uk/doc/local-authority/30UN,Homelessness,Contributions,4730,2 months rent as agreed ,14/11/2018,0000443144,"1,000.00",Revenue,NAME REDACTED,132671
South Ribble Council,http://statistics.data.gov.uk/doc/local-authority/30UN,Housing,Cap Grant- Improve Grants,C570,DFG work for level access bathroom and handrail at ADDRESS REDACTED. New progress property so 50% of quote of 4880.00,07/11/2018,0000443037,"2,440.00",Revenue,MAHONEY CONTRACTORS LTD,131271
South Ribble Council,http://statistics.data.gov.uk/doc/local-authority/30UN,Neighbourhood Admin & Support,Materials General,4040,INGLEBOROUGH WAY,28/11/2018,0000443525,90.00,Revenue,Main Street Signs Ltd,131922
South Ribble Council,http://statistics.data.gov.uk/doc/local-authority/30UN,Neighbourhood Admin & Support,Materials General,4040,BOXER PLACE  T,28/11/2018,0000443525,43.00,Revenue,Main Street Signs Ltd,131922
South Ribble Council,http://statistics.data.gov.uk/doc/local-authority/30UN,Neighbourhood Admin & Support,Materials General,4040,SOUTHFIELD DRIVE   T,28/11/2018,0000443525,96.00,Revenue,Main Street Signs Ltd,131922
South Ribble Council,http://statistics.data.gov.uk/doc/local-authority/30UN,Neighbourhood Admin & Support,Materials General,4040,ROYALTY LANE,28/11/2018,0000443525,82.00,Revenue,Main Street Signs Ltd,131922
South Ribble Council,http://statistics.data.gov.uk/doc/local-authority/30UN,Neighbourhood Admin & Support,Materials General,4040,WARWICK ROAD,28/11/2018,0000443525,41.00,Revenue,Main Street Signs Ltd,131922
South Ribble Council,http://statistics.data.gov.uk/doc/local-authority/30UN,Neighbourhood Admin & Support,Materials General,4040,ST DAVID`S ROAD,28/11/2018,0000443525,168.00,Revenue,Main Street Signs Ltd,131922
South Ribble Council,http://statistics.data.gov.uk/doc/local-authority/30UN,Neighbourhood Admin & Support,Materials General,4040,16 - 60 EVEN,28/11/2018,0000443525,78.00,Revenue,Main Street Signs Ltd,131922
South Ribble Council,http://statistics.data.gov.uk/doc/local-authority/30UN,Neighbourhood Admin & Support,Materials General,4040,74 - 104 EVEN,28/11/2018,0000443525,80.00,Revenue,Main Street Signs Ltd,131922
South Ribble Council,http://statistics.data.gov.uk/doc/local-authority/30UN,Neighbourhood Admin & Support,Materials General,4040,116 - 138 EVEN,28/11/2018,0000443525,82.00,Revenue,Main Street Signs Ltd,131922
South Ribble Council,http://statistics.data.gov.uk/doc/local-authority/30UN,Neighbourhood Admin & Support,Materials General,4040,152 - 166 EVEN,28/11/2018,0000443525,82.00,Revenue,Main Street Signs Ltd,131922
South Ribble Council,http://statistics.data.gov.uk/doc/local-authority/30UN,Neighbourhood Admin & Support,Materials General,4040,180 - 194 EVEN,28/11/2018,0000443525,82.00,Revenue,Main Street Signs Ltd,131922
South Ribble Council,http://statistics.data.gov.uk/doc/local-authority/30UN,Neighbourhood Admin & Support,Materials General,4040,208 - 226 EVEN,28/11/2018,0000443525,41.00,Revenue,Main Street Signs Ltd,131922
South Ribble Council,http://statistics.data.gov.uk/doc/local-authority/30UN,Neighbourhood Admin & Support,Materials General,4040,carriage,28/11/2018,0000443525,64.50,Revenue,Main Street Signs Ltd,131922
South Ribble Council,http://statistics.data.gov.uk/doc/local-authority/30UN,Development Enterprise & Comm Mgnt,Professional Fees,4510,Survey and Cartography of various primary schools Total Cost 650,21/11/2018,0000443220,650.00,Revenue,Mappa Outdoor,132451
South Ribble Council,http://statistics.data.gov.uk/doc/local-authority/30UN,Area 3 - Parks/Leyland East West,Grounds Maint Cntrctrs Chgs,4657,"400 No A49 85mm Bricks delivered to Worden Park, Leyland Please call NAME REDACTED 30 mins prior to delivery.",07/11/2018,0000443005,400.00,Revenue,MARTIN EDWARDS,00054768
South Ribble Council,http://statistics.data.gov.uk/doc/local-authority/30UN,Area 3 - Parks/Leyland East West,Grounds Maint Cntrctrs Chgs,4657,delivery charge,07/11/2018,0000443005,20.00,Revenue,MARTIN EDWARDS,00054768
South Ribble Council,http://statistics.data.gov.uk/doc/local-authority/30UN,Homelessness,Contributions,4730,Agreed cash bond for ADDRESS REDACTED,21/11/2018,0000443413,550.00,Revenue,METHODIST ACTION (A PLACE TO LIVE) LIMITED,130329
South Ribble Council,http://statistics.data.gov.uk/doc/local-authority/30UN,Area 3 - Parks/Leyland East West,Grounds Maint Cntrctrs Chgs,4657,Clear rubble from bay. Move soil from bay to soil pile. Move bark from arboretum to bay in Depot,23/11/2018,0000443394,420.00,Revenue,Michael Alty,132480
South Ribble Council,http://statistics.data.gov.uk/doc/local-authority/30UN,Area 1 - Penwortham Western Parishes,Professional Fees,4521,PROVISION OF STRAY DOG SERVICE - TO COVER OCTOBER 2018,23/11/2018,0000443324,465.52,Revenue,MORNINGSIDE KENNELS,00067755
South Ribble Council,http://statistics.data.gov.uk/doc/local-authority/30UN,Property Services,External Contractors Charges,4575,To supply hot meals/sweet @ 7 per head for 55 on 1st November 2018 @ 16.30 to SRBC,23/11/2018,0000443385,385.00,Revenue,MOSS HOUSE FARM,00121808
South Ribble Council,http://statistics.data.gov.uk/doc/local-authority/30UN,Environmental Health,Licence Fees,488B,mgmt fee 3rd oct 18 dec 18,14/11/2018,0000443192,"1,375.00",Revenue,MOSS SIDE COMMUNITY FORUM,00098724
South Ribble Council,http://statistics.data.gov.uk/doc/local-authority/30UN,Area 2 - Waste Transport/Eastern & Central Teams,Other Misc,48EF,SUPPLY AND FIT MEZZANINE FLOOR IN VEHICLE WORKSHOP,30/11/2018,0000443543,"5,450.00",Revenue,MRB Workshop Services Ltd,132635
South Ribble Council,http://statistics.data.gov.uk/doc/local-authority/30UN,Area 2 - Waste Transport/Eastern & Central Teams,External Contractors Charges,4570,LOLER INSPECTION - JFC11545 - VO65KRD ,23/11/2018,0000443331,120.00,Revenue,MUNICIPAL VEHICLE INSPECTION SERVICES LT,00096645
South Ribble Council,http://statistics.data.gov.uk/doc/local-authority/30UN,Area 2 - Waste Transport/Eastern & Central Teams,External Contractors Charges,4570,LOLER INSPECTION - JFC11546 - VO65KRE ,23/11/2018,0000443331,120.00,Revenue,MUNICIPAL VEHICLE INSPECTION SERVICES LT,00096645
South Ribble Council,http://statistics.data.gov.uk/doc/local-authority/30UN,Area 2 - Waste Transport/Eastern & Central Teams,External Contractors Charges,4570,LOLER INSPECTION - JFC11547 - VO65KRF ,23/11/2018,0000443331,120.00,Revenue,MUNICIPAL VEHICLE INSPECTION SERVICES LT,00096645
South Ribble Council,http://statistics.data.gov.uk/doc/local-authority/30UN,Area 2 - Waste Transport/Eastern & Central Teams,External Contractors Charges,4570,LOLER INSPECTION - JFC11548 - VO65KPX ,23/11/2018,0000443331,60.00,Revenue,MUNICIPAL VEHICLE INSPECTION SERVICES LT,00096645
South Ribble Council,http://statistics.data.gov.uk/doc/local-authority/30UN,Area 2 - Waste Transport/Eastern & Central Teams,External Contractors Charges,4570,LOLER INSPECTION - JFC11549 - VO65KPY ,23/11/2018,0000443331,60.00,Revenue,MUNICIPAL VEHICLE INSPECTION SERVICES LT,00096645
South Ribble Council,http://statistics.data.gov.uk/doc/local-authority/30UN,Area 2 - Waste Transport/Eastern & Central Teams,External Contractors Charges,4570,LOLER INSPECTION - JFC11551 - VO65KPZ ,23/11/2018,0000443331,120.00,Revenue,MUNICIPAL VEHICLE INSPECTION SERVICES LT,00096645
South Ribble Council,http://statistics.data.gov.uk/doc/local-authority/30UN,Area 2 - Waste Transport/Eastern & Central Teams,External Contractors Charges,4570,STEAM CLEAN - JFC11316 - VX18 KLC (2.10.18),07/11/2018,0000443010,65.00,Revenue,NAYLORS TRANSPORT (LEYLAND) ltd,00114828
South Ribble Council,http://statistics.data.gov.uk/doc/local-authority/30UN,Area 2 - Waste Transport/Eastern & Central Teams,External Contractors Charges,4570,STEAM CLEAN - JFC11315 - VO65KPX (3.10.18),07/11/2018,0000443010,65.00,Revenue,NAYLORS TRANSPORT (LEYLAND) ltd,00114828
South Ribble Council,http://statistics.data.gov.uk/doc/local-authority/30UN,Area 2 - Waste Transport/Eastern & Central Teams,External Contractors Charges,4570,STEAM CLEAN - JFC11317 - PF18JOV (8.10.18),07/11/2018,0000443010,65.00,Revenue,NAYLORS TRANSPORT (LEYLAND) ltd,00114828
South Ribble Council,http://statistics.data.gov.uk/doc/local-authority/30UN,Area 2 - Waste Transport/Eastern & Central Teams,External Contractors Charges,4570,STEAM CLEAN - JFC11318 - VN10DKL (9.10.18),07/11/2018,0000443010,65.00,Revenue,NAYLORS TRANSPORT (LEYLAND) ltd,00114828
South Ribble Council,http://statistics.data.gov.uk/doc/local-authority/30UN,Area 2 - Waste Transport/Eastern & Central Teams,External Contractors Charges,4570,STEAM CLEAN (MOT) - JFC11319 - VO65KPZ (12.10.18),07/11/2018,0000443010,75.00,Revenue,NAYLORS TRANSPORT (LEYLAND) ltd,00114828
South Ribble Council,http://statistics.data.gov.uk/doc/local-authority/30UN,Area 2 - Waste Transport/Eastern & Central Teams,External Contractors Charges,4570,STEAM CLEAN - JFC11320 - VO65KPY (17.10.18),07/11/2018,0000443010,65.00,Revenue,NAYLORS TRANSPORT (LEYLAND) ltd,00114828
South Ribble Council,http://statistics.data.gov.uk/doc/local-authority/30UN,Area 2 - Waste Transport/Eastern & Central Teams,External Contractors Charges,4570,STEAM CLEAN - JFC11321 - VO65KRD (18.10.18),07/11/2018,0000443010,65.00,Revenue,NAYLORS TRANSPORT (LEYLAND) ltd,00114828
South Ribble Council,http://statistics.data.gov.uk/doc/local-authority/30UN,Area 2 - Waste Transport/Eastern & Central Teams,External Contractors Charges,4570,STEAM CLEAN - JFC11322 - PO13UUM (19.10.18),07/11/2018,0000443010,65.00,Revenue,NAYLORS TRANSPORT (LEYLAND) ltd,00114828
South Ribble Council,http://statistics.data.gov.uk/doc/local-authority/30UN,Area 2 - Waste Transport/Eastern & Central Teams,External Contractors Charges,4570,STEAM CLEAN - JFC11323 - VO65KRF (22.10.18),07/11/2018,0000443010,65.00,Revenue,NAYLORS TRANSPORT (LEYLAND) ltd,00114828
South Ribble Council,http://statistics.data.gov.uk/doc/local-authority/30UN,Area 2 - Waste Transport/Eastern & Central Teams,External Contractors Charges,4570,STEAM CLEAN - JFC11324 - MX04YNL (23.10.18),07/11/2018,0000443010,65.00,Revenue,NAYLORS TRANSPORT (LEYLAND) ltd,00114828
South Ribble Council,http://statistics.data.gov.uk/doc/local-authority/30UN,Area 2 - Waste Transport/Eastern & Central Teams,External Contractors Charges,4570,STEAM CLEAN - JFC11325 - VO65KRE (24.10.18),07/11/2018,0000443010,65.00,Revenue,NAYLORS TRANSPORT (LEYLAND) ltd,00114828
South Ribble Council,http://statistics.data.gov.uk/doc/local-authority/30UN,Area 2 - Waste Transport/Eastern & Central Teams,External Contractors Charges,4570,STEAM CLEAN (MOT) - JFC11326 - PJ62UCH (25.10.18),07/11/2018,0000443010,75.00,Revenue,NAYLORS TRANSPORT (LEYLAND) ltd,00114828
South Ribble Council,http://statistics.data.gov.uk/doc/local-authority/30UN,Area 2 - Waste Transport/Eastern & Central Teams,External Contractors Charges,4570,STEAM CLEAN - JFC11327 - PJ62UCL (31.10.18),07/11/2018,0000443010,65.00,Revenue,NAYLORS TRANSPORT (LEYLAND) ltd,00114828
South Ribble Council,http://statistics.data.gov.uk/doc/local-authority/30UN,Area 2 - Waste Transport/Eastern & Central Teams,External Contractors Charges,4570,STEAM CLEAN - JFC11328 - YP11CFM (1.11.18),07/11/2018,0000443010,65.00,Revenue,NAYLORS TRANSPORT (LEYLAND) ltd,00114828
South Ribble Council,http://statistics.data.gov.uk/doc/local-authority/30UN,Neighbourhood Admin & Support,External Contractors Charges,4570,REMOVAL FLY TIP RED DEISEL,07/11/2018,0000442517,285.00,Revenue,NEALES WASTE MANAGEMENT,130129
South Ribble Council,http://statistics.data.gov.uk/doc/local-authority/30UN,Development Enterprise & Comm Mgnt,Other Expenses,4630,Facility Hire for Active Camps Oct for 5 days  Cost 250,23/11/2018,0000443484,250.00,Revenue,NORTHBROOK COMMUNITY PRIMARY SCHOOL,131485
South Ribble Council,http://statistics.data.gov.uk/doc/local-authority/30UN,Area 3 - Parks/Leyland East West,Grounds Maint Cntrctrs Chgs,4657,"Carry out repairs to water tank lead lining, Worden Park",16/11/2018,0000442489,"2,186.58",Revenue,Northwest Lead Ltd,132622
South Ribble Council,http://statistics.data.gov.uk/doc/local-authority/30UN,Area 1 - Penwortham Western Parishes,Professional Fees,4514,Deployment of Officers October 2018,21/11/2018,0000443339,"1,460.15",Revenue,NSL LTD,00116868
South Ribble Council,http://statistics.data.gov.uk/doc/local-authority/30UN,Area 1 - Penwortham Western Parishes,Other Misc,4855,Cash Collection and Ring-Go Transactions October 2018,21/11/2018,0000443339,316.23,Revenue,NSL LTD,00116868
South Ribble Council,http://statistics.data.gov.uk/doc/local-authority/30UN,Area 1 - Penwortham Western Parishes,Other Misc,4855,Ring-go Convenience Charge - October 2018,21/11/2018,0000443339,183.75,Revenue,NSL LTD,00116868
South Ribble Council,http://statistics.data.gov.uk/doc/local-authority/30UN,Information Services,Peripherals,4245,1yr DNS Hosting for 3 Domain Names 13/11/18 - 12/11/19,09/11/2018,0000443057,652.28,Revenue,NVIRON LTD,00028781
South Ribble Council,http://statistics.data.gov.uk/doc/local-authority/30UN,Information Services,Peripherals,4247,"VMware annual renewal for period 09/11/18 - 08/11/19, as per quote",28/11/2018,0000443515,"7,403.63",Revenue,NVIRON LTD,00028781
South Ribble Council,http://statistics.data.gov.uk/doc/local-authority/30UN,Information Services,Peripherals,4247,Stonegate Managed Service for period 16/12/18 - 15/03/19,28/11/2018,0000443516,"1,904.85",Revenue,NVIRON LTD,00028781
South Ribble Council,http://statistics.data.gov.uk/doc/local-authority/30UN,Area 3 - Parks/Leyland East West,Grounds Maint Cntrctrs Chgs,4657,"Carry out 31m Macadam Surface Works to Greencroft Park to include Timber Edging, Binder & Surface Course.",30/11/2018,0000443108,"2,285.00",Revenue,O`Callaghan Ltd,132068
South Ribble Council,http://statistics.data.gov.uk/doc/local-authority/30UN,Area 1 - Penwortham Western Parishes,Operational Furniture & Equip,4013,Call out to repair P & D Machine No 8 at Hope Terrace Car Park on 12.10.18.Replaced keyboard display.,16/11/2018,0000443309,529.00,Revenue,PARKEON LTD,00082918
South Ribble Council,http://statistics.data.gov.uk/doc/local-authority/30UN,Regeneration,Capital Expenditure,C230,ecology surveys,14/11/2018,0000442977,"1,140.00",Revenue,Pennine Ecological (Preston),132553
South Ribble Council,http://statistics.data.gov.uk/doc/local-authority/30UN,HR & Communications,Training Expense-Course Fees,1408,Nov-18,16/11/2018,0000443244,87.00,Revenue,People Asset Management,132492
South Ribble Council,http://statistics.data.gov.uk/doc/local-authority/30UN,HR & Communications,Training Expense-Course Fees,1408,FLU JABS,16/11/2018,0000443244,320.00,Revenue,People Asset Management,132492
South Ribble Council,http://statistics.data.gov.uk/doc/local-authority/30UN,Environmental Health,Professional Fees,4522,gov fee,23/11/2018,0000442801,264.00,Revenue,Personnel Checks,132574
South Ribble Council,http://statistics.data.gov.uk/doc/local-authority/30UN,Environmental Health,Professional Fees,4522,admin fee,23/11/2018,0000442801,79.98,Revenue,Personnel Checks,132574
South Ribble Council,http://statistics.data.gov.uk/doc/local-authority/30UN,Environmental Health,Professional Fees,4522,gov fee,23/11/2018,0000443338,308.00,Revenue,Personnel Checks,132574
South Ribble Council,http://statistics.data.gov.uk/doc/local-authority/30UN,Environmental Health,Professional Fees,4522,admin fee,23/11/2018,0000443338,93.31,Revenue,Personnel Checks,132574
South Ribble Council,http://statistics.data.gov.uk/doc/local-authority/30UN,Revenues Plus,Balance Sheet,0008,refund 5 x 50,14/11/2018,0000443157,250.00,Revenue,NAME REDACTED,132673
South Ribble Council,http://statistics.data.gov.uk/doc/local-authority/30UN,Environmental Health,Peripherals,4273,"8,000 for the contribution from South Ribble Borough Council for the Domestic Abuse element of Lancashire Victim Services.",21/11/2018,0000443319,"8,000.00",Revenue,POLICE & CRIME COMMISSIONER LANCS POLICE,00026851
South Ribble Council,http://statistics.data.gov.uk/doc/local-authority/30UN,Information Services,Stationery,4133,"40,000 sheets Evolution Everyday A4 80gm 5000 sheets Evolution Everyday A3 80gm",07/11/2018,0000443039,262.50,Revenue,PREMIER PAPER GROUP LTD,00022606
South Ribble Council,http://statistics.data.gov.uk/doc/local-authority/30UN,Information Services,Stationery,4133,"60,000 sheets Evolution Everyday A4 80gm 5000 sheets Evolution Everyday A3 80gm 1000 sheets Premier Elements Fire White",28/11/2018,0000443485,386.44,Revenue,PREMIER PAPER GROUP LTD,00022606
South Ribble Council,http://statistics.data.gov.uk/doc/local-authority/30UN,Homelessness,Peripherals,4272,Tailored package completed at ADDRESS REDACTED,21/11/2018,0000443422,430.00,Revenue,PRESTON CARE & REPAIR,130877
South Ribble Council,http://statistics.data.gov.uk/doc/local-authority/30UN,Regeneration,Other Misc,4861,"To produce 500 walk cards of each of 3 sets, as sent through, a total of 1500 cards to print.",07/11/2018,0000442694,360.00,Revenue,Preston City Council,131913
South Ribble Council,http://statistics.data.gov.uk/doc/local-authority/30UN,Area 2 - Waste Transport/Eastern & Central Teams,External Contractors Charges,4570,TYRE REPAIRS (TR197/TR198),09/11/2018,0000443106,614.95,Revenue,PRESTON TYRE SPECIALISTS,00109516
South Ribble Council,http://statistics.data.gov.uk/doc/local-authority/30UN,Homelessness,Contractors Charges 5,5313,Agreed void loss payments for interim accommodation July 18-Sept 18,21/11/2018,0000443289,"1,830.49",Revenue,PROGRESS HOUSING GRP ref:DNSOU001,00030135
South Ribble Council,http://statistics.data.gov.uk/doc/local-authority/30UN,Area 3 - Parks/Leyland East West,Grounds Maint Cntrctrs Chgs,4657,1x F2954 Deck,21/11/2018,0000443359,263.17,Revenue,PROLUDIC LTD,00083263
South Ribble Council,http://statistics.data.gov.uk/doc/local-authority/30UN,Area 3 - Parks/Leyland East West,Grounds Maint Cntrctrs Chgs,4657,Delivery,21/11/2018,0000443359,26.32,Revenue,PROLUDIC LTD,00083263
South Ribble Council,http://statistics.data.gov.uk/doc/local-authority/30UN,Information Services,Postage,4292,Franking Funds Top up payment,28/11/2018,0000443524,"9,000.00",Revenue,Purchase Power,00093923
South Ribble Council,http://statistics.data.gov.uk/doc/local-authority/30UN,Information Services,Postage,4292,Reset Fee,28/11/2018,0000443524,98.71,Revenue,Purchase Power,00093923
South Ribble Council,http://statistics.data.gov.uk/doc/local-authority/30UN,Area 1 - Penwortham Western Parishes,External Contractors Charges,4570,2 Toughened Glass End Panels 1208 x 1249 x 8mm (05-10289/9/1),07/11/2018,0000443008,136.32,Revenue,QUEENSBURY SHELTERS LTD,00084576
South Ribble Council,http://statistics.data.gov.uk/doc/local-authority/30UN,Area 1 - Penwortham Western Parishes,External Contractors Charges,4570,Screws M6 x 35 (9062-33),07/11/2018,0000443008,1.12,Revenue,QUEENSBURY SHELTERS LTD,00084576
South Ribble Council,http://statistics.data.gov.uk/doc/local-authority/30UN,Area 1 - Penwortham Western Parishes,External Contractors Charges,4570,Screws M6 x 12 (9061 - 73),07/11/2018,0000443008,0.32,Revenue,QUEENSBURY SHELTERS LTD,00084576
South Ribble Council,http://statistics.data.gov.uk/doc/local-authority/30UN,Area 1 - Penwortham Western Parishes,External Contractors Charges,4570,Glazing Clamps (04.112890.C2),07/11/2018,0000443008,32.28,Revenue,QUEENSBURY SHELTERS LTD,00084576
South Ribble Council,http://statistics.data.gov.uk/doc/local-authority/30UN,Area 1 - Penwortham Western Parishes,External Contractors Charges,4570,Glazing rubber (6m) (18029),07/11/2018,0000443008,12.00,Revenue,QUEENSBURY SHELTERS LTD,00084576
South Ribble Council,http://statistics.data.gov.uk/doc/local-authority/30UN,Area 1 - Penwortham Western Parishes,External Contractors Charges,4570,To Deliver Items to PR26 7QR,07/11/2018,0000443008,123.75,Revenue,QUEENSBURY SHELTERS LTD,00084576
South Ribble Council,http://statistics.data.gov.uk/doc/local-authority/30UN,Area 3 - Parks/Leyland East West,Contract Hire & Lease Costs,3212,HIRE OF 2 TON DUMPER AND 1.8 TON MINI EXCAVATOR - ON HIRE TUESDAY 23.10.18. (TO BE DELIVERED TO WORDEN,14/11/2018,0000443163,390.00,Revenue,Readyplant Limited,131535
South Ribble Council,http://statistics.data.gov.uk/doc/local-authority/30UN,Property Services,Rep & Maint Premises,2020,Annual Contract 2018/2019 for the service of grease trap at Civic Centre,30/11/2018,0000443449,295.00,Revenue,RED ROSE BUILDING MAINTENANCE,00085410
South Ribble Council,http://statistics.data.gov.uk/doc/local-authority/30UN,Homelessness,Contributions,4730,2 weeks rent as agreed ,07/11/2018,0000443078,380.00,Revenue,REDDY & CO,00108177
South Ribble Council,http://statistics.data.gov.uk/doc/local-authority/30UN,Homelessness,Contributions,4730,2 further weeks rent ,09/11/2018,0000443119,380.00,Revenue,REDDY & CO,00108177
South Ribble Council,http://statistics.data.gov.uk/doc/local-authority/30UN,Homelessness,Contractors Charges 5,5311,accommodation at the Courtyard re KC ongoing placement. 25/night placement commenced 22.10.2018 first invoice 13.11.2018,21/11/2018,0000443393,575.00,Revenue,REDDY & CO,00108177
South Ribble Council,http://statistics.data.gov.uk/doc/local-authority/30UN,Information Services,Stationery,413A,,14/11/2018,0000443268,"3,967.61",Revenue,RICOH (UK) LTD,00082976
South Ribble Council,http://statistics.data.gov.uk/doc/local-authority/30UN,Information Services,Lease Rental Charges,4036,,14/11/2018,0000443268,"4,638.79",Revenue,RICOH (UK) LTD,00082976
South Ribble Council,http://statistics.data.gov.uk/doc/local-authority/30UN,Information Services,Stationery,413A,,21/11/2018,0000443372,165.08,Revenue,RICOH (UK) LTD,00082976
South Ribble Council,http://statistics.data.gov.uk/doc/local-authority/30UN,Information Services,Lease Rental Charges,4036,,21/11/2018,0000443372,334.19,Revenue,RICOH (UK) LTD,00082976
South Ribble Council,http://statistics.data.gov.uk/doc/local-authority/30UN,Development Enterprise & Comm Mgnt,Operational Furniture & Equip,4010,isurv  Basic valuation and the Red Book Online subscription 2018/2019,21/11/2018,0000442967,300.00,Revenue,RICS,00033307
South Ribble Council,http://statistics.data.gov.uk/doc/local-authority/30UN,Democratic Services,Postage,4291,DEMOCRATIC SERVICES - DAY TO DAY POSTAGE COSTS,09/11/2018,0000442582,"5,631.25",Revenue,ROYAL MAIL GROUP PLC,00033543
South Ribble Council,http://statistics.data.gov.uk/doc/local-authority/30UN,HR & Communications,Postage,4291,"DELIVERY OF FORWARD PAPER - 3,313 ITEMS",14/11/2018,0000443266,"2,588.40",Revenue,ROYAL MAIL GROUP PLC,00033543
South Ribble Council,http://statistics.data.gov.uk/doc/local-authority/30UN,Information Services,Postage,4295,,23/11/2018,0000443430,290.52,Revenue,ROYAL MAIL GROUP PLC,00033543
South Ribble Council,http://statistics.data.gov.uk/doc/local-authority/30UN,Property Services,Energy Costs,2304,23/6/18 to 26/9/18,23/11/2018,0000443196,456.42,Revenue,SCOTTISH HYDRO ELECTRIC,130051
South Ribble Council,http://statistics.data.gov.uk/doc/local-authority/30UN,Property Services,Energy Costs,2303,1/9/18 to 30/9/18,23/11/2018,0000443345,341.72,Revenue,SCOTTISH HYDRO ELECTRIC,130051
South Ribble Council,http://statistics.data.gov.uk/doc/local-authority/30UN,Property Services,Energy Costs,2307,CCL,23/11/2018,0000443345,17.06,Revenue,SCOTTISH HYDRO ELECTRIC,130051
South Ribble Council,http://statistics.data.gov.uk/doc/local-authority/30UN,Property Services,Energy Costs,2303,1/10/18 to 31/10/18,23/11/2018,0000443346,458.97,Revenue,SCOTTISH HYDRO ELECTRIC,130051
South Ribble Council,http://statistics.data.gov.uk/doc/local-authority/30UN,Property Services,Energy Costs,2307,CCl,23/11/2018,0000443346,23.08,Revenue,SCOTTISH HYDRO ELECTRIC,130051
South Ribble Council,http://statistics.data.gov.uk/doc/local-authority/30UN,Property Services,Energy Costs,2303,1/10/18 to 31/10/18,23/11/2018,0000443347,"3,300.65",Revenue,SCOTTISH HYDRO ELECTRIC,130051
South Ribble Council,http://statistics.data.gov.uk/doc/local-authority/30UN,Property Services,Energy Costs,2307,CCL,23/11/2018,0000443347,177.13,Revenue,SCOTTISH HYDRO ELECTRIC,130051
South Ribble Council,http://statistics.data.gov.uk/doc/local-authority/30UN,Property Services,Energy Costs,2303,1/10/18 to 31/10/18,23/11/2018,0000443349,"1,714.51",Revenue,SCOTTISH HYDRO ELECTRIC,130051
South Ribble Council,http://statistics.data.gov.uk/doc/local-authority/30UN,Property Services,Energy Costs,2307,CCL,23/11/2018,0000443349,97.10,Revenue,SCOTTISH HYDRO ELECTRIC,130051
South Ribble Council,http://statistics.data.gov.uk/doc/local-authority/30UN,Property Services,Energy Costs,2303,1/10/18 to 31/10/18,23/11/2018,0000443350,891.59,Revenue,SCOTTISH HYDRO ELECTRIC,130051
South Ribble Council,http://statistics.data.gov.uk/doc/local-authority/30UN,Property Services,Energy Costs,2307,CCL,23/11/2018,0000443350,47.33,Revenue,SCOTTISH HYDRO ELECTRIC,130051
South Ribble Council,http://statistics.data.gov.uk/doc/local-authority/30UN,Information Services,Peripherals,4247,Sophos SG 330 Premium Support 12 Months Renewal (UTM License ID 1136587) (SKU 1136587) Annual maintenance Sophos,14/11/2018,0000443279,"4,013.00",Revenue,SecureData Europe Ltd,132381
South Ribble Council,http://statistics.data.gov.uk/doc/local-authority/30UN,Information Services,Peripherals,4269,"Clearswift Secure Email Gateway 28/11/18 - 27/11/19, as per quote Q-06687-1",16/11/2018,0000443284,"5,613.00",Revenue,SecureData Europe Ltd,132381
South Ribble Council,http://statistics.data.gov.uk/doc/local-authority/30UN,Healthy Communities,Consultancy Fees,4536,R & M for 2018/2019,09/11/2018,0000443050,"15,779.22",Revenue,SERCO LEISURE (OP) LTD,00094906
South Ribble Council,http://statistics.data.gov.uk/doc/local-authority/30UN,HR & Communications,Recruitment Expenses,1500,Job Vacancy Advert: Health & Safety Officer October 2018,21/11/2018,0000443305,"1,295.00",Revenue,SHP4Jobs,132659
South Ribble Council,http://statistics.data.gov.uk/doc/local-authority/30UN,Information Services,Peripherals,4247,"Cerberus FTP Server (Enterprise Edition, Single Renewal, 1 year Support and Upgrades, ESD) 01/11/18 - 31/10/19, as per quote",02/11/2018,0000442993,695.44,Revenue,SOFTCAT LIMITED,130963
South Ribble Council,http://statistics.data.gov.uk/doc/local-authority/30UN,HR & Communications,Payroll Suspense,1741,SOLACE Membership Renewal for NAME REDACTED - 15 September 2018 - 14 September 2019,07/11/2018,0000443031,350.00,Revenue,SOLACE,00105400
South Ribble Council,http://statistics.data.gov.uk/doc/local-authority/30UN,Healthy Communities,Consultancy Fees,4532,Leisure Services Fee 2018/2019,09/11/2018,0000443049,"16,639.56",Revenue,SOUTH RIBBLE COMMUNITY LEISURE LTD,00094210
South Ribble Council,http://statistics.data.gov.uk/doc/local-authority/30UN,Shared Financial Services,Balance Sheet,0030,Monthly Deductions from Payroll,02/11/2018,0000443026,752.00,Revenue,SOUTH RIBBLE LABOUR PARTY LOCAL GOVERNM,00120663
South Ribble Council,http://statistics.data.gov.uk/doc/local-authority/30UN,Neighbourhood Admin & Support,Operational Furniture & Equip,4010,LITTER PICKER - 27242,30/11/2018,0000443551,561.00,Revenue,SPALDINGS,00070849
South Ribble Council,http://statistics.data.gov.uk/doc/local-authority/30UN,HR & Communications,Training Expense-Course Fees,1402,Mental Health First Aider Training on 7/8th June 2018 - NAME REDACTED,09/11/2018,0000443138,300.00,Revenue,ST JOHNS AMBULANCE,00116253
South Ribble Council,http://statistics.data.gov.uk/doc/local-authority/30UN,Property Services,Rep & Maint Premises,2020,Annual Contract for 2018/2019 for the moveable walls x 2  Moveo 1 service visit per year  in the Civic Suite ref SNO-Q  M0173  ,21/11/2018,0000443321,600.00,Revenue,STYLE MOVEABLE PARTITION SPECIALISTS,00119917
South Ribble Council,http://statistics.data.gov.uk/doc/local-authority/30UN,Property Services,Client Internal Charges,4590,2018 / 2019 fees for front end loader weekly exchange at Leyland Market,07/11/2018,0000443047,361.92,Revenue,SUEZ  RECYCLING AND REC UK LTD 80005291,00038920
South Ribble Council,http://statistics.data.gov.uk/doc/local-authority/30UN,Property Services,Client Internal Charges,4590,2018 / 2019 monthly rental fees for the RORO at Leyland Market,07/11/2018,0000443047,65.00,Revenue,SUEZ  RECYCLING AND REC UK LTD 80005291,00038920
South Ribble Council,http://statistics.data.gov.uk/doc/local-authority/30UN,Revenues Plus,Stationery,4130,1000 red forms,16/11/2018,0000443304,865.00,Revenue,SYSTEM CELL LTD,00108122
South Ribble Council,http://statistics.data.gov.uk/doc/local-authority/30UN,Area 2 - Waste Transport/Eastern & Central Teams,Materials General,4040,1 shock absorber VO65 KRD JFC11545,28/11/2018,0000443455,893.66,Revenue,Taylor Enginering & Fabrications Ltd,132560
South Ribble Council,http://statistics.data.gov.uk/doc/local-authority/30UN,Information Services,Consultancy Fees,4541,ICT Digital Strategy Project,28/11/2018,0000443505,"10,475.00",Revenue,TechAlign,132535
South Ribble Council,http://statistics.data.gov.uk/doc/local-authority/30UN,Regeneration,Professional Fees,4510,Management of Tree Hives,14/11/2018,0000443133,450.00,Revenue,The Bee centre,132104
South Ribble Council,http://statistics.data.gov.uk/doc/local-authority/30UN,Legal,Payroll Suspense,1741,MEMBERSHIP RENEWALFOR NAME REDACTED - 2019,23/11/2018,0000443134,364.00,Revenue,THE CHARTERED INSTITUTE OF LEGAL EXECUTIVES,131354
South Ribble Council,http://statistics.data.gov.uk/doc/local-authority/30UN,Area 3 - Parks/Leyland East West,External Contractors Charges,4570,SUPPLY AND INSTALL: 2.4m x 1.2m WIDE PALISADE GATE WITH INFILL PANELS AND 2nr FANTAILS TO EITHER SIDE,21/11/2018,0000443318,355.00,Revenue,Thistlethwaite Fencing Contractors Ltd,132647
South Ribble Council,http://statistics.data.gov.uk/doc/local-authority/30UN,Area 3 - Parks/Leyland East West,External Contractors Charges,4570,materials & powder coat green,21/11/2018,0000443318,"2,175.00",Revenue,Thistlethwaite Fencing Contractors Ltd,132647
South Ribble Council,http://statistics.data.gov.uk/doc/local-authority/30UN,Legal,Publications,4142,aldridge R59,09/11/2018,0000443096,484.00,Revenue,THOMSON REUTERS,00034979
South Ribble Council,http://statistics.data.gov.uk/doc/local-authority/30UN,Information Services,Peripherals,4247,"Cabling to Building Control area, 2nd floor, as per quote TC1688/18",14/11/2018,0000443215,598.00,Revenue,TIS Networks,132417
South Ribble Council,http://statistics.data.gov.uk/doc/local-authority/30UN,Development Enterprise & Comm Mgnt,Other Expenses,4630,1100 Scootsafe 12 page A4 1100 Scootsafe certificate 500 Mindfulness certificate 2000 Heart Start certificate Printing price 840,23/11/2018,0000443290,840.00,Revenue,TOWNSEND PRINT SERVICES LTD,00037170
South Ribble Council,http://statistics.data.gov.uk/doc/local-authority/30UN,Housing,Cap Grant- Improve Grants,C570,Grant payment towards the cost of supply and installation of external wall insulation to ADDRESS REDACTED ,21/11/2018,0000443310,"4,000.00",Revenue,Trade Energy,132102
South Ribble Council,http://statistics.data.gov.uk/doc/local-authority/30UN,Housing,Cap Grant- Improve Grants,C570,Grant payment towards the cost of supply and installation of external wall insulation to ADDRESS REDACTED ,21/11/2018,0000443340,"4,000.00",Revenue,Trade Energy,132102
South Ribble Council,http://statistics.data.gov.uk/doc/local-authority/30UN,Democratic Services,Other Expenses,463A,PROVISION OF TRAFFIC SAFETY & MANAGEMENT FOR LEYLAND REMEMBRANCE DAY 11 NOVEMBER 2018,14/11/2018,0000443242,"2,010.00",Revenue,VENTBROOK LTD,131218
South Ribble Council,http://statistics.data.gov.uk/doc/local-authority/30UN,Neighbourhood Admin & Support,Materials General,4040,Black sacks (455 x 735 x 990mm) M1A1 Printed 1 side  50 sacks per fold 250 sacks per carton 21S019/565.65 per thousand,23/11/2018,0000443387,"2,576.76",Revenue,VISION GELPACK LIMITED,132657
South Ribble Council,http://statistics.data.gov.uk/doc/local-authority/30UN,Information Services,Peripherals,4269,"Annual PO for ISDN lines, line rentals & call charges 01/04/18 - 31/03/19",23/11/2018,0000443006,679.39,Revenue,VODAFONE RE:CABLE & WIRELESS UK,130810
South Ribble Council,http://statistics.data.gov.uk/doc/local-authority/30UN,Information Services,Peripherals,4247,Civic Centre Broadband 1GB link,23/11/2018,0000443446,"5,305.80",Revenue,VODAFONE RE:CABLE & WIRELESS UK,130810
South Ribble Council,http://statistics.data.gov.uk/doc/local-authority/30UN,Property Services,Water Charges,2511,4/4/18 to 2/10/18,02/11/2018,0000442847,415.35,Revenue,WATER PLUS,00029845
South Ribble Council,http://statistics.data.gov.uk/doc/local-authority/30UN,Property Services,Water Charges,2511,06/08/2018 to 24/10/2018,02/11/2018,0000442998,"1,993.67",Revenue,WATER PLUS,00029845
South Ribble Council,http://statistics.data.gov.uk/doc/local-authority/30UN,Property Services,Water Charges,2511,24/8/18 to 6/11/18,16/11/2018,0000443283,558.98,Revenue,WATER PLUS,00029845
South Ribble Council,http://statistics.data.gov.uk/doc/local-authority/30UN,Property Services,Water Charges,2511,4/9/18 to 13/11/18,21/11/2018,0000443382,"5,974.97",Revenue,WATER PLUS,00029845
South Ribble Council,http://statistics.data.gov.uk/doc/local-authority/30UN,Property Services,Water Charges,2511,20/8/18 to 19/11/18,28/11/2018,0000443518,"3,452.91",Revenue,WATER PLUS,00029845
South Ribble Council,http://statistics.data.gov.uk/doc/local-authority/30UN,Legal,Legal,4821,PROFESSIONAL SERVICES (STATUTORY PROCEDURES) APRIL ONWARDS,30/11/2018,0000443547,"1,539.00",Revenue,WEIGHTMANS LLP,00120867
South Ribble Council,http://statistics.data.gov.uk/doc/local-authority/30UN,Legal,Legal,4821,PROFESSIONAL SERVICES RELATING TO LEYLAND TEST TRACK,30/11/2018,0000443548,825.00,Revenue,WEIGHTMANS LLP,00120867
South Ribble Council,http://statistics.data.gov.uk/doc/local-authority/30UN,Neighbourhood Admin & Support,External Contractors Charges,4570,FORSHAW ROAD PENWORTHAM - REMOVAL OF 7 TREES,09/11/2018,0000443167,"2,865.00",Revenue,WESTFIELD TREE SERVICES LTD,00114226
South Ribble Council,http://statistics.data.gov.uk/doc/local-authority/30UN,Revenues Plus,Postage,4291,Revenues Sept - Dec 2018,09/11/2018,0000443098,255.77,Revenue,WHISTL UK LTD,131310
South Ribble Council,http://statistics.data.gov.uk/doc/local-authority/30UN,Revenues Plus,Postage,4291,Revenues Sept - Dec 2018,14/11/2018,0000443151,274.27,Revenue,WHISTL UK LTD,131310
South Ribble Council,http://statistics.data.gov.uk/doc/local-authority/30UN,Area 3 - Parks/Leyland East West,Rep & Maint Premises,2020,Repair of wall corner and replacement of lintel as per quote dated 01/06/18,14/11/2018,0000443171,"1,250.00",Revenue,WJ Structures Ltd,132581
South Ribble Council,http://statistics.data.gov.uk/doc/local-authority/30UN,Area 3 - Parks/Leyland East West,Grounds Maint Cntrctrs Chgs,4657,REPAIRS TO CONSERVATORY REAR WALL AND CASTING OF PADSTONES,14/11/2018,0000443172,"4,975.00",Revenue,WJ Structures Ltd,132581
South Ribble Council,http://statistics.data.gov.uk/doc/local-authority/30UN,Area 3 - Parks/Leyland East West,Grounds Maint Cntrctrs Chgs,4657,REPAIRS TO CONSERVATORY REAR WALL AND CASTING OF PADSTONES,23/11/2018,0000443174,"4,975.00",Revenue,WJ Structures Ltd,132581
South Ribble Council,http://statistics.data.gov.uk/doc/local-authority/30UN,Neighbourhood Admin & Support,Grounds Maint Cntrctrs Chgs,4657,4 x Replacement vinyl overlay for King George`s PF Penwortham,23/11/2018,0000442831,240.00,Revenue,WOODSTOCK SIGNS,00039039
South Ribble Council,http://statistics.data.gov.uk/doc/local-authority/30UN,Neighbourhood Admin & Support,Grounds Maint Cntrctrs Chgs,4657,4 x Replacement vinyl overlays for Birch Ave,23/11/2018,0000442831,240.00,Revenue,WOODSTOCK SIGNS,00039039
South Ribble Council,http://statistics.data.gov.uk/doc/local-authority/30UN,Regeneration,Other Misc,4851,"To produce 2 signs for Longton/New Longton with the designs as discussed and agreed, at 274 each.",07/11/2018,0000442832,548.00,Revenue,WOODSTOCK SIGNS,00039039
South Ribble Council,http://statistics.data.gov.uk/doc/local-authority/30UN,Regeneration,External Contractors Charges,4570,To provide 4 posts and 4 finials for the Welcome to Signs as discussed and agreed,14/11/2018,0000443120,436.00,Revenue,WOODSTOCK SIGNS,00039039
South Ribble Council,http://statistics.data.gov.uk/doc/local-authority/30UN,Property Services,Rep & Maint Premises,2020,Please attend Kingsfold pavilion to repair the leak to the immersion heaters. Contact property services for access.,02/11/2018,0000442983,257.55,Revenue,Wright Build Limited,131203
South Ribble Council,http://statistics.data.gov.uk/doc/local-authority/30UN,Legal,Capital Expenditure,C230,SEARCHES RELATING TO LAND ON THE EAST SIDE OF ADDRESS REDACTED,09/11/2018,0000443035,514.67,Revenue,XPressLegal Services,132037
South Ribble Council,http://statistics.data.gov.uk/doc/local-authority/30UN,Legal,Capital Expenditure,C230,non vat,09/11/2018,0000443035,22.00,Revenue,XPressLegal Services,132037
South Ribble Council,http://statistics.data.gov.uk/doc/local-authority/30UN,Legal,Capital Expenditure,C230,SEARCHES RELATING TO LAND ON THE NORTH SIDE OF ADDRESS REDACTED,09/11/2018,0000443036,514.67,Revenue,XPressLegal Services,132037
South Ribble Council,http://statistics.data.gov.uk/doc/local-authority/30UN,Legal,Capital Expenditure,C230,non vat,09/11/2018,0000443036,22.00,Revenue,XPressLegal Services,132037
